bitfinex/quotes_BTCUSD_20251114
["timestamp","ask_amount","ask_price","bid_price","bid_amount"]
[1763131916508,0.00013579,96400.0,96399.0,0.36449455]
[1763131916805,0.00013579,96400.0,96399.0,0.323]
[1763131917730,0.00013579,96400.0,96399.0,0.04441874]
[1763131917957,0.00013579,96400.0,96399.0,0.001]
[1763131918172,0.00013579,96400.0,96399.0,0.00223]
[1763131918393,0.00013579,96400.0,96399.0,0.04341874]
[1763131918595,0.00013579,96400.0,96399.0,0.13085108]
[1763131918793,0.00013579,96400.0,96399.0,0.13089108]
[1763131919168,0.00013579,96400.0,96399.0,0.13189108]
[1763131919371,0.01,96450.0,96420.0,0.01037129]
[1763131919601,0.01013594,96450.0,96448.0,0.20736553]
[1763131919791,0.01013594,96450.0,96432.0,0.10479654]
[1763131919792,0.01929808,96449.0,96432.0,0.10479654]
[1763131919997,0.01013594,96450.0,96432.0,0.10479654]
[1763131919998,0.01929808,96448.0,96447.0,0.20736777]
[1763131920352,0.01930719,96448.0,96446.0,0.20736882]
[1763131920558,0.20740128,96432.0,96413.0,0.00223]
[1763131920806,0.01,96430.0,96399.0,0.00327]
[1763131921017,0.01,96410.0,96399.0,0.00104]
[1763131921237,0.09917,96429.0,96399.0,4e-05]
[1763131921475,0.01932012,96428.0,96400.0,0.01037344]
[1763131921678,0.01932012,96427.0,96399.0,4e-05]
[1763131921826,0.01,96410.0,96403.0,0.20746032]
[1763131922038,0.01,96410.0,96399.0,4e-05]
[1763131922235,0.01,96400.0,96399.0,0.20751103]
[1763131922436,0.01,96400.0,96399.0,0.18551103]
[1763131922675,0.01,96410.0,96408.0,0.20745111]
[1763131922880,0.01,96420.0,96409.0,0.02074495]
[1763131923080,0.09917,96454.0,96430.0,0.01037021]
[1763131923230,0.01931998,96453.0,96452.0,0.20735702]
[1763131923427,0.01931998,96453.0,96452.0,0.22809272]
[1763131923736,0.01931623,96453.0,96452.0,0.0207357]
[1763131923949,0.01,96450.0,96420.0,0.01037129]
[1763131924157,0.06589623,96453.0,96420.0,0.01037129]
[1763131924158,0.01,96440.0,96430.0,0.11516675]
[1763131924385,0.00013594,96454.0,96453.0,0.20735487]
[1763131924592,0.00013594,96454.0,96446.0,0.20736984]
[1763131924801,0.01931476,96453.0,96447.0,0.323]
[1763131925000,0.01931476,96452.0,96447.0,0.323]
[1763131925213,0.00013594,96454.0,96451.0,0.323]
[1763131925628,0.00013594,96454.0,96453.0,4e-05]
[1763131926475,0.00013594,96454.0,96453.0,0.32304]
[1763131926685,0.00013594,96454.0,96453.0,0.52234858]
[1763131926891,0.00013594,96454.0,96453.0,0.52334858]
[1763131927270,0.00013594,96454.0,96453.0,0.42883654]
[1763131927426,0.00013594,96454.0,96453.0,0.00104]
[1763131927635,0.00013594,96454.0,96453.0,4e-05]
[1763131928020,0.00013594,96454.0,96453.0,0.00104]
[1763131928237,0.00013594,96454.0,96453.0,0.00108]
[1763131928838,0.00113594,96454.0,96453.0,0.00108]
[1763131929062,0.00113594,96454.0,96453.0,8e-05]
[1763131929266,0.00013594,96454.0,96453.0,8e-05]
[1763131929482,0.00013594,96454.0,96453.0,0.00108]
[1763131929687,0.00113594,96454.0,96452.0,0.15743516]
[1763131930085,0.00113594,96454.0,96453.0,0.42779654]
[1763131930766,0.00013594,96454.0,96453.0,0.42779654]
[1763131930972,0.00013594,96454.0,96453.0,0.53146592]
[1763131931585,0.00013594,96454.0,96453.0,0.42779654]
[1763131932016,0.00013594,96454.0,96453.0,0.42879654]
[1763131932554,0.00013594,96454.0,96453.0,0.42779654]
[1763131932758,0.00013594,96454.0,96453.0,0.42879654]
[1763131932962,0.00013594,96454.0,96453.0,0.42979654]
[1763131933184,0.00013594,96454.0,96453.0,0.53346592]
[1763131933590,0.0002,96460.0,96453.0,0.57588466]
[1763131933793,0.0002,96480.0,96479.0,0.53029899]
[1763131934385,0.0002,96480.0,96479.0,0.323]
[1763131934822,0.0102,96480.0,96479.0,0.323]
[1763131935047,0.0002,96480.0,96453.0,0.10366938]
[1763131935227,0.01,96470.0,96454.0,0.10479654]
[1763131935436,0.01929212,96469.0,96460.0,0.20733871]
[1763131935647,0.01,96460.0,96440.0,0.01036914]
[1763131935849,0.01,96460.0,96455.0,0.323]
[1763131936050,0.01596825,96469.0,96440.0,0.00013594]
[1763131936253,0.01,96450.0,96440.0,0.00013594]
[1763131936465,0.01,96450.0,96440.0,0.01670418]
[1763131936696,0.01,96450.0,96440.0,0.00013594]
[1763131936919,0.01,96450.0,96445.0,0.20737036]
[1763131937126,0.01,96450.0,96440.0,0.00013594]
[1763131937338,0.01,96450.0,96440.0,0.02088827]
[1763131937548,0.01,96450.0,96442.0,0.20737742]
[1763131937754,0.011,96450.0,96448.0,0.20736452]
[1763131937957,0.011,96450.0,96440.0,0.02088827]
[1763131937958,0.011,96450.0,96441.0,0.53037929]
[1763131938173,0.011,96450.0,96442.0,0.20737738]
[1763131938389,0.012,96450.0,96448.0,0.20736523]
[1763131938812,0.01,96450.0,96448.0,0.20736456]
[1763131939017,0.06,96450.0,96448.0,0.20736456]
[1763131939235,0.062,96450.0,96448.0,0.20736456]
[1763131939453,0.061,96450.0,96448.0,0.20736456]
[1763131939664,0.061,96450.0,96449.0,0.06221066]
[1763131939873,0.051,96450.0,96449.0,0.082947]
[1763131940087,0.051,96450.0,96449.0,0.51074354]
[1763131940293,0.05,96450.0,96449.0,0.4900072]
[1763131940706,0.051,96450.0,96449.0,0.42779654]
[1763131941117,0.05,96450.0,96449.0,0.42779654]
[1763131941321,0.05,96450.0,96449.0,0.43002654]
[1763131941522,0.05,96450.0,96449.0,0.42879654]
[1763131942145,0.05,96450.0,96449.0,0.42979654]
[1763131942348,0.0002,96480.0,96449.0,0.53246592]
[1763131942553,0.0002,96480.0,96465.0,0.323]
[1763131942554,0.0102,96480.0,96465.0,0.323]
[1763131942754,0.0102,96480.0,96475.0,0.20730567]
[1763131942961,0.0102,96480.0,96466.0,0.323]
[1763131943193,0.0102,96480.0,96479.0,0.20729899]
[1763131943395,0.0002,96480.0,96479.0,0.22802889]
[1763131943598,0.0002,96480.0,96479.0,0.20729899]
[1763131943798,0.0022,96480.0,96479.0,0.20729899]
[1763131944217,0.0012,96480.0,96479.0,0.20729899]
[1763131944422,0.0012,96480.0,96479.0,0.14129899]
[1763131944623,0.0012,96480.0,96479.0,0.19688943]
[1763131944624,0.0022,96480.0,96479.0,0.19688943]
[1763131944824,0.0012,96480.0,96479.0,0.05559044]
[1763131945119,0.0002,96480.0,96478.0,0.20730071]
[1763131945326,0.0012,96480.0,96478.0,0.20730071]
[1763131945527,0.0002,96480.0,96478.0,0.20730071]
[1763131947017,0.0002,96480.0,96479.0,0.42779654]
[1763131947218,0.0002,96480.0,96479.0,0.44018587]
[1763131947472,0.0002,96480.0,96479.0,0.54162525]
[1763131947782,0.04972,96519.0,96479.0,0.54162525]
[1763131947783,0.01,96490.0,96479.0,0.323]
[1763131947999,0.00045316,96490.0,96489.0,0.323]
[1763131948171,0.00045316,96490.0,96489.0,0.38328]
[1763131948401,0.00045316,96490.0,96489.0,0.46306421]
[1763131948572,0.00045316,96490.0,96489.0,0.40278421]
[1763131949221,0.02226656,96537.0,96535.0,0.20717836]
[1763131949437,0.08514104,96536.0,96510.0,0.01036162]
[1763131949648,0.01932104,96535.0,96533.0,0.20718221]
[1763131949857,0.01932104,96534.0,96533.0,0.53018221]
[1763131950056,0.00013591,96537.0,96536.0,0.53017659]
[1763131950208,0.01945308,96537.0,96536.0,0.53017659]
[1763131950560,0.00013591,96537.0,96536.0,0.62448659]
[1763131950763,0.00013591,96537.0,96536.0,0.63384597]
[1763131950968,0.00013591,96537.0,96536.0,0.53017659]
[1763131951171,0.00013591,96537.0,96536.0,0.53121659]
[1763131951396,0.00213591,96537.0,96536.0,0.53121659]
[1763131951592,0.00213591,96537.0,96536.0,0.45421659]
[1763131951888,0.0185742,96579.0,96565.0,0.20711384]
[1763131951889,0.01,96570.0,96565.0,0.20711384]
[1763131952031,0.01,96570.0,96561.0,0.20712145]
[1763131952032,0.01929059,96569.0,96561.0,0.20712145]
[1763131952232,0.01929059,96568.0,96566.0,0.20711072]
[1763131952510,0.01929059,96567.0,96566.0,0.20711072]
[1763131953125,0.00013576,96570.0,96569.0,0.20710579]
[1763131953258,0.00013576,96570.0,96566.0,0.20711072]
[1763131953458,0.01013576,96570.0,96567.0,0.26153485]
[1763131953687,0.01013576,96570.0,96567.0,0.20711008]
[1763131953905,0.01013576,96570.0,96565.0,0.03571]
[1763131954175,0.01,96570.0,96567.0,0.20710923]
[1763131954377,0.01014014,96580.0,96566.0,4e-05]
[1763131954598,0.011,96570.0,96569.0,0.20710579]
[1763131955010,0.001,96570.0,96569.0,0.20710579]
[1763131955468,0.00296612,96570.0,96569.0,0.20710579]
[1763131955673,0.00296612,96570.0,96569.0,0.27769369]
[1763131956110,0.00196612,96570.0,96569.0,0.60069369]
[1763131956350,0.00396612,96570.0,96569.0,0.53010579]
[1763131956827,0.00296612,96570.0,96569.0,0.53010579]
[1763131957008,0.00296612,96570.0,96569.0,0.53014579]
[1763131957253,0.00296612,96570.0,96569.0,0.63381517]
[1763131957474,0.00014014,96580.0,96579.0,0.53008435]
[1763131958149,0.00040934,96580.0,96579.0,0.53008435]
[1763131958357,0.0002,96600.0,96599.0,0.53004148]
[1763131958569,0.00065243,96600.0,96599.0,0.53004148]
[1763131958765,0.00065243,96600.0,96599.0,0.60062938]
[1763131959047,0.00065243,96600.0,96599.0,0.70542592]
[1763131959247,0.00065243,96600.0,96599.0,0.67184466]
[1763131959765,0.04931,96660.0,96614.0,0.323]
[1763131959766,0.01,96660.0,96614.0,0.323]
[1763131959935,0.01013577,96660.0,96640.0,0.01034768]
[1763131960135,0.00013577,96660.0,96642.0,0.323]
[1763131960347,0.00013577,96660.0,96646.0,0.323]
[1763131960348,0.01013577,96660.0,96646.0,0.323]
[1763131960509,0.00013577,96660.0,96649.0,0.20693433]
[1763131960710,0.00013577,96660.0,96641.0,0.03568]
[1763131961139,0.01013577,96660.0,96644.0,0.20694465]
[1763131961343,0.01113577,96660.0,96647.0,0.20693762]
[1763131961547,0.2180485,96660.0,96641.0,0.03568]
[1763131961752,0.09315,96659.0,96616.0,0.03568]
[1763131961950,0.01,96630.0,96616.0,0.03568]
[1763131962149,0.01,96630.0,96617.0,0.3117973]
[1763131962348,0.01,96640.0,96620.0,0.01034982]
[1763131962618,0.01,96640.0,96626.0,0.20698301]
[1763131962868,0.20695244,96641.0,96621.0,0.02451364]
[1763131963227,0.01,96630.0,96622.0,0.323]
[1763131963403,0.01,96630.0,96625.0,0.20698479]
[1763131963583,0.01,96630.0,96623.0,0.20698813]
[1763131963785,0.01,96630.0,96624.0,0.07290947]
[1763131964000,0.002,96640.0,96628.0,0.20697757]
[1763131964193,0.01,96640.0,96619.0,0.323]
[1763131964380,0.01,96640.0,96626.0,0.20698225]
[1763131964576,0.011,96630.0,96621.0,0.323]
[1763131964777,0.001,96630.0,96621.0,0.40164765]
[1763131965027,0.001,96630.0,96621.0,0.323]
[1763131965175,0.001,96630.0,96624.0,0.323]
[1763131965375,0.001,96630.0,96624.0,0.52998576]
[1763131965710,0.011,96630.0,96626.0,0.20698354]
[1763131965911,0.00013572,96641.0,96624.0,0.52998576]
[1763131965912,0.01,96640.0,96624.0,0.323]
[1763131966115,0.011,96640.0,96624.0,0.52998576]
[1763131966312,0.011,96640.0,96628.0,0.2069775]
[1763131966551,0.01,96630.0,96626.0,0.20698238]
[1763131966718,0.01,96640.0,96631.0,0.20697255]
[1763131966923,0.01,96640.0,96630.0,0.20697422]
[1763131967130,0.01,96640.0,96620.0,0.01034982]
[1763131967340,0.00013572,96641.0,96639.0,0.27326479]
[1763131967552,0.00013572,96641.0,96640.0,0.38931]
[1763131967789,0.00013572,96641.0,96640.0,0.41731]
[1763131967956,0.00013572,96641.0,96640.0,0.323]
[1763131968577,0.00113572,96641.0,96640.0,0.323]
[1763131968726,0.00013572,96641.0,96640.0,0.323]
[1763131968926,0.00013572,96641.0,96640.0,0.53146592]
[1763131969126,0.00013572,96641.0,96640.0,0.53246592]
[1763131970046,0.00013572,96641.0,96640.0,0.63765754]
[1763131970325,0.00177673,96641.0,96640.0,0.63665754]
[1763131970547,0.00177673,96641.0,96640.0,0.70689754]
[1763131971246,0.00177673,96641.0,96640.0,0.70789754]
[1763131971457,0.00177673,96641.0,96640.0,0.81056692]
[1763131971971,0.00177673,96641.0,96640.0,0.43079654]
[1763131972148,0.00177673,96641.0,96640.0,0.54074754]
[1763131972352,0.00177673,96641.0,96640.0,0.53974754]
[1763131972559,0.00177673,96641.0,96640.0,0.59038254]
[1763131972762,0.00177673,96641.0,96640.0,0.59138254]
[1763131972959,0.00177673,96641.0,96640.0,0.69505192]
[1763131973162,0.00177673,96641.0,96640.0,0.69205192]
[1763131973570,0.00177673,96641.0,96640.0,0.10879654]
[1763131973776,0.00177673,96641.0,96640.0,0.10679654]
[1763131973948,0.00177673,96641.0,96639.0,0.20695479]
[1763131974154,0.00013572,96641.0,96640.0,0.002]
[1763131974498,0.00013572,96641.0,96640.0,0.325]
[1763131974634,0.00113572,96641.0,96640.0,0.002]
[1763131975076,0.01,96640.0,96610.0,0.58838881]
[1763131975432,0.00013572,96641.0,96623.0,0.10479654]
[1763131975611,0.00013572,96641.0,96610.0,0.01035089]
[1763131975612,0.00013572,96641.0,96640.0,0.001]
[1763131975766,0.00013572,96641.0,96640.0,0.20795364]
[1763131975990,0.00013572,96641.0,96640.0,0.227749]
[1763131976392,0.00013572,96641.0,96635.0,0.20696273]
[1763131976613,0.00013572,96641.0,96620.0,0.01034982]
[1763131976859,0.01,96640.0,96626.0,0.20698255]
[1763131977069,0.01,96640.0,96620.0,0.01034982]
[1763131977070,0.01,96640.0,96625.0,0.20698513]
[1763131977245,0.01,96630.0,96620.0,0.01038982]
[1763131977449,0.01,96630.0,96626.0,0.20698305]
[1763131977674,0.01,96630.0,96628.0,0.20697809]
[1763131977914,0.00113572,96641.0,96629.0,0.11920977]
[1763131978140,0.00113572,96641.0,96640.0,0.52995364]
[1763131978550,0.00113572,96641.0,96640.0,1.24450064]
[1763131978551,0.00013572,96641.0,96640.0,1.24450064]
[1763131978720,0.00013572,96641.0,96640.0,0.84583764]
[1763131979519,0.0002,96670.0,96669.0,0.20689155]
[1763131979729,0.00033562,96670.0,96669.0,0.24258155]
[1763131979884,0.00275606,96670.0,96669.0,0.24258155]
[1763131980288,0.00275606,96670.0,96669.0,0.56558155]
[1763131980488,0.00275606,96670.0,96669.0,0.86360755]
[1763131980727,0.00275606,96670.0,96669.0,0.83417407]
[1763131981071,0.00275606,96670.0,96669.0,0.70314507]
[1763131981285,0.10479654,96735.0,96669.0,0.70314507]
[1763131981286,0.01,96720.0,96690.0,0.01034233]
[1763131981489,0.01591011,96719.0,96691.0,0.323]
[1763131981688,0.01591011,96719.0,96710.0,0.20680297]
[1763131981907,0.00045226,96720.0,96712.0,0.20679882]
[1763131982126,0.00045226,96720.0,96695.0,0.323]
[1763131982339,0.01045226,96720.0,96698.0,0.10479654]
[1763131982546,0.01,96700.0,96677.0,0.0949]
[1763131982748,0.67786018,96720.0,96677.0,0.0949]
[1763131982749,0.01591011,96719.0,96681.0,0.03571]
[1763131982956,0.01,96700.0,96682.0,0.01409534]
[1763131983176,0.01,96700.0,96696.0,0.20683189]
[1763131983407,0.01,96690.0,96685.0,0.323]
[1763131983618,0.20683609,96695.0,96676.0,0.20687458]
[1763131983830,0.01,96680.0,96671.0,0.13059]
[1763131984042,0.04341874,96703.0,96687.0,0.2068513]
[1763131984247,0.04341874,96703.0,96679.0,0.20686965]
[1763131984248,0.01,96690.0,96679.0,0.20686965]
[1763131984451,0.01,96680.0,96664.0,0.20690225]
[1763131984669,0.01,96670.0,96664.0,0.00013562]
[1763131984877,0.01,96670.0,96640.0,0.01034768]
[1763131984878,0.04496,96665.0,96640.0,0.2069516]
[1763131985085,0.01,96650.0,96649.0,0.20693437]
[1763131985292,0.01,96660.0,96649.0,0.00013572]
[1763131985562,0.323,96685.0,96669.0,0.20689155]
[1763131985563,0.01,96670.0,96669.0,0.20689155]
[1763131985783,0.01,96680.0,96670.0,0.01034447]
[1763131985991,0.2666566,96680.0,96679.0,0.20687015]
[1763131986411,0.2666566,96680.0,96679.0,0.41431115]
[1763131986618,0.25646481,96680.0,96679.0,0.41431115]
[1763131986815,0.25646481,96680.0,96679.0,0.44890853]
[1763131987245,0.25660038,96680.0,96679.0,0.24203838]
[1763131987450,0.25660038,96680.0,96679.0,0.20687015]
[1763131987768,0.25660038,96680.0,96679.0,0.20787015]
[1763131988126,0.25660038,96680.0,96679.0,0.13587015]
[1763131989278,0.25660038,96680.0,96679.0,0.13687015]
[1763131989474,0.25660038,96680.0,96679.0,0.13487015]
[1763131989906,0.25660038,96680.0,96679.0,0.45987015]
[1763131990300,0.25660038,96680.0,96679.0,0.56466669]
[1763131990517,0.25660038,96680.0,96679.0,0.45987015]
[1763131990741,0.25660038,96680.0,96679.0,0.56645015]
[1763131991414,0.0002,96730.0,96700.0,0.01034126]
[1763131991415,0.0102,96730.0,96700.0,0.01034126]
[1763131991643,0.01065226,96730.0,96728.0,0.20676468]
[1763131992130,0.01065226,96730.0,96728.0,0.20676349]
[1763131992593,0.00065226,96730.0,96728.0,0.20676349]
[1763131993011,0.00265226,96730.0,96728.0,0.20676349]
[1763131993464,0.20674185,96739.0,96710.0,0.58837811]
[1763131993669,0.01,96730.0,96701.0,0.03333413]
[1763131993878,0.40043157,96737.0,96700.0,0.1151378]
[1763131993879,0.2226593,96736.0,96719.0,0.20678439]
[1763131994084,0.2226593,96736.0,96703.0,0.10479654]
[1763131994085,0.01,96730.0,96703.0,0.10479654]
[1763131994296,0.323,96734.0,96690.0,0.58838025]
[1763131994500,0.04341874,96728.0,96690.0,0.01034233]
[1763131994708,0.36641874,96726.0,96690.0,0.01034233]
[1763131994907,0.36641874,96726.0,96698.0,0.20682905]
[1763131994908,0.01,96700.0,96698.0,0.20682905]
[1763131995121,0.01,96700.0,96699.0,0.02068273]
[1763131995327,0.01,96710.0,96699.0,0.02068273]
[1763131995531,0.01,96710.0,96709.0,0.20680486]
[1763131995949,0.09964,96718.0,96704.0,0.20681639]
[1763131996127,0.00013551,96710.0,96709.0,0.20680553]
[1763131996331,0.01013551,96710.0,96709.0,0.20680553]
[1763131996534,0.01013551,96710.0,96703.0,0.20681881]
[1763131996676,0.01013551,96710.0,96690.0,0.01034233]
[1763131996892,0.00013551,96710.0,96697.0,0.20683098]
[1763131997275,0.00013551,96710.0,96690.0,0.01034233]
[1763131997276,0.01013551,96710.0,96708.0,0.20680704]
[1763131997612,0.00013551,96710.0,96709.0,0.10479654]
[1763131998610,0.00113551,96710.0,96709.0,0.10479654]
[1763131999149,0.00013551,96710.0,96709.0,0.10479654]
[1763131999351,0.00013551,96710.0,96709.0,0.10579654]
[1763131999694,0.00013551,96710.0,96709.0,0.57662354]
[1763131999988,0.00013551,96710.0,96709.0,0.324]
[1763132000191,0.00013551,96710.0,96709.0,0.10579654]
[1763132000401,0.00013551,96710.0,96709.0,0.75535413]
[1763132000738,0.00013551,96710.0,96709.0,0.52973854]
[1763132000953,9e-05,96745.0,96744.0,0.20673116]
[1763132001086,9e-05,96745.0,96720.0,0.85296648]
[1763132001087,0.00022549,96745.0,96742.0,0.20673346]
[1763132001430,0.00022549,96745.0,96743.0,0.20673123]
[1763132001628,0.00022549,96745.0,96743.0,0.24242123]
[1763132002084,0.00022549,96745.0,96744.0,0.09187]
[1763132002385,0.00022549,96745.0,96744.0,0.573414]
[1763132002808,0.00022549,96745.0,96744.0,0.481544]
[1763132003019,0.00022549,96745.0,96744.0,0.58521338]
[1763132003209,0.00022549,96745.0,96744.0,0.53188438]
[1763132003392,0.00022549,96745.0,96744.0,0.53288438]
[1763132003573,0.00022549,96745.0,96744.0,0.53188438]
[1763132003893,0.0002,96770.0,96744.0,0.53188438]
[1763132003894,0.0002,96770.0,96769.0,0.20667775]
[1763132004228,0.0002,96770.0,96769.0,0.24238775]
[1763132004698,0.00288534,96770.0,96769.0,0.51969975]
[1763132004886,0.00288534,96770.0,96769.0,0.84269975]
[1763132005517,0.0002,96810.0,96809.0,0.20639243]
[1763132005732,0.00033554,96810.0,96809.0,0.20659236]
[1763132005924,0.00033554,96810.0,96808.0,0.20659319]
[1763132007311,0.00033554,96810.0,96809.0,0.10479654]
[1763132007538,0.00033554,96810.0,96808.0,0.20659319]
[1763132007694,0.00033554,96810.0,96801.0,0.01811]
[1763132007898,0.01033554,96810.0,96790.0,0.01811]
[1763132008298,0.00233554,96810.0,96808.0,0.20659282]
[1763132008481,0.00233554,96810.0,96809.0,0.02065928]
[1763132008679,0.00133554,96810.0,96808.0,0.16959282]
[1763132008890,0.00133554,96810.0,96809.0,0.10479654]
[1763132009336,0.00133554,96810.0,96809.0,0.42779654]
[1763132009565,0.00489655,96848.0,96847.0,0.2065113]
[1763132009762,0.00489655,96848.0,96839.0,0.04598]
[1763132009763,0.005348,96848.0,96845.0,0.20651405]
[1763132010008,0.005348,96848.0,96845.0,0.20651544]
[1763132010898,0.005348,96848.0,96847.0,0.10479654]
[1763132011304,0.005348,96848.0,96845.0,0.20651544]
[1763132011470,0.005348,96848.0,96847.0,0.2075113]
[1763132011867,0.005348,96848.0,96847.0,0.2065113]
[1763132012126,0.0074398,96848.0,96847.0,0.2065113]
[1763132012339,0.0074398,96848.0,96847.0,0.2075113]
[1763132012673,9e-05,96876.0,96866.0,0.20647079]
[1763132012844,0.00253541,96867.0,96866.0,0.31126733]
[1763132013210,0.00253541,96867.0,96866.0,0.20647079]
[1763132014612,0.00253541,96867.0,96866.0,0.001]
[1763132014733,0.00253541,96867.0,96866.0,0.20647079]
[1763132015180,0.00253541,96867.0,96866.0,0.20747079]
[1763132015340,0.00253541,96867.0,96866.0,0.20647079]
[1763132015761,0.00253541,96867.0,96866.0,0.20747079]
[1763132015959,0.00253541,96867.0,96866.0,0.14647079]
[1763132017197,0.00253541,96867.0,96866.0,0.14547079]
[1763132017401,0.00253541,96867.0,96843.0,0.0774116]
[1763132017604,0.00253541,96867.0,96866.0,0.001]
[1763132017803,0.00253541,96867.0,96866.0,0.002]
[1763132018106,0.2033555,96880.0,96866.0,0.001]
[1763132018309,0.01,96870.0,96863.0,0.20647536]
[1763132018580,0.00050923,96867.0,96866.0,0.001]
[1763132018740,0.01,96870.0,96866.0,0.00113541]
[1763132018941,0.20646866,96867.0,96866.0,0.00013541]
[1763132019344,0.09424,96875.0,96866.0,0.00013541]
[1763132019549,0.20646636,96869.0,96866.0,0.00013541]
[1763132019908,0.20646636,96869.0,96820.0,0.8529558]
[1763132019909,0.01032524,96850.0,96820.0,0.01032844]
[1763132020114,0.01,96830.0,96820.0,0.01032844]
[1763132020315,0.01,96830.0,96828.0,0.20655027]
[1763132020521,0.0482,96821.0,96800.0,0.01033057]
[1763132020697,0.04341874,96847.0,96810.0,0.01032951]
[1763132020905,0.85295367,96840.0,96801.0,0.20660943]
[1763132021135,0.85295367,96840.0,96802.0,0.2066073]
[1763132021347,0.04341874,96839.0,96800.0,0.01033057]
[1763132021559,0.0482,96801.0,96776.0,0.5]
[1763132021767,0.01,96800.0,96775.0,0.02819]
[1763132021966,0.01,96800.0,96768.0,0.25243775]
[1763132022246,0.01,96790.0,96784.0,0.20664359]
[1763132022448,0.01,96790.0,96769.0,0.14003532]
[1763132022648,0.01,96790.0,96770.0,0.02066756]
[1763132022810,0.05263,96799.0,96788.0,0.2066367]
[1763132023009,0.05263,96854.0,96820.0,0.20656889]
[1763132023626,0.01,96850.0,96847.0,0.2065113]
[1763132023836,0.05263,96847.0,96820.0,0.01032844]
[1763132024287,0.05276523,96847.0,96820.0,0.01032844]
[1763132024441,0.05276523,96847.0,96844.0,0.20651606]
[1763132024627,0.05276523,96847.0,96830.0,0.20654592]
[1763132024835,0.00113523,96847.0,96839.0,0.20652645]
[1763132025084,0.00113523,96847.0,96821.0,0.20656675]
[1763132025287,0.01,96840.0,96838.0,0.20652908]
[1763132025726,0.01,96840.0,96831.0,0.20654331]
[1763132025945,0.01,96830.0,96820.0,0.01032844]
[1763132026174,0.01,96830.0,96829.0,0.20654969]
[1763132026373,0.09577,96829.0,96777.0,0.02819]
[1763132026578,0.01,96800.0,96780.0,0.01033271]
[1763132026781,0.01,96800.0,96795.0,0.20662207]
[1763132026952,0.01,96800.0,96780.0,0.01033271]
[1763132026953,0.01,96800.0,96797.0,0.20661686]
[1763132027176,0.01,96800.0,96792.0,0.20662788]
[1763132027379,0.01,96800.0,96780.0,0.01033271]
[1763132027522,0.01,96790.0,96780.0,0.01033271]
[1763132027723,0.01,96790.0,96789.0,0.20663505]
[1763132027926,0.20663505,96789.0,96780.0,0.00045145]
[1763132028142,0.05263,96789.0,96774.0,0.19211713]
[1763132028334,0.01,96790.0,96784.0,0.20664426]
[1763132028541,0.01,96790.0,96787.0,0.20663846]
[1763132028942,0.01,96800.0,96797.0,0.20661607]
[1763132029141,0.0482,96802.0,96799.0,0.20661319]
[1763132029341,0.0482,96802.0,96780.0,0.01033271]
[1763132029342,0.01,96810.0,96807.0,0.20659568]
[1763132029793,0.01,96810.0,96790.0,0.01033164]
[1763132030013,0.01,96810.0,96804.0,0.20660095]
[1763132030178,0.01,96810.0,96804.0,0.20660256]
[1763132030516,0.01,96800.0,96793.0,0.20662545]
[1763132030722,0.0482,96794.0,96793.0,0.00013554]
[1763132031477,0.01,96800.0,96793.0,0.00013554]
[1763132031679,0.001,96802.0,96793.0,0.00013554]
[1763132031880,0.20662316,96795.0,96793.0,0.00013554]
[1763132032290,0.001,96794.0,96793.0,0.00013554]
[1763132032491,0.20662316,96795.0,96793.0,0.00013554]
[1763132032681,0.04341874,96795.0,96793.0,0.00013554]
[1763132032878,0.04341874,96795.0,96784.0,4e-05]
[1763132032879,0.20664359,96785.0,96784.0,4e-05]
[1763132033078,0.20668652,96765.0,96746.0,0.20672623]
[1763132033278,0.0482,96759.0,96752.0,0.20671376]
[1763132033481,0.0482,96759.0,96743.0,0.20673134]
[1763132033482,0.25489911,96759.0,96740.0,0.01033698]
[1763132033770,0.0482,96759.0,96740.0,0.01033698]
[1763132033989,0.0482,96759.0,96737.0,0.2067461]
[1763132034188,0.0482,96759.0,96753.0,0.20671009]
[1763132034395,0.0482,96759.0,96758.0,0.20955062]
[1763132035003,0.0492,96759.0,96758.0,0.20955062]
[1763132035206,0.001,96759.0,96758.0,0.27184758]
[1763132035404,0.001,96759.0,96758.0,0.20584758]
[1763132035582,0.001,96759.0,96758.0,0.14355062]
[1763132036024,0.001,96759.0,96756.0,0.20670395]
[1763132036211,0.01,96760.0,96756.0,0.20670552]
[1763132036390,0.01,96760.0,96758.0,0.20670041]
[1763132036596,0.01,96750.0,96723.0,0.323]
[1763132036791,0.001,96759.0,96758.0,0.20670125]
[1763132037002,0.09577,96768.0,96758.0,0.20670125]
[1763132037003,0.01,96760.0,96758.0,0.20670125]
[1763132037201,0.0482,96769.0,96767.0,0.20668203]
[1763132037804,0.0482,96769.0,96762.0,0.2066922]
[1763132038023,0.0482,96769.0,96761.0,0.20669304]
[1763132038270,0.01,96760.0,96759.0,0.20669911]
[1763132038608,0.0482,96769.0,96767.0,0.20668164]
[1763132038807,0.0482,96769.0,96758.0,4e-05]
[1763132038808,0.01,96760.0,96758.0,4e-05]
[1763132039037,0.09577,96768.0,96758.0,4e-05]
[1763132039213,0.01,96760.0,96758.0,4e-05]
[1763132039414,0.20669825,96760.0,96758.0,4e-05]
[1763132039836,0.09577,96768.0,96714.0,0.04576]
[1763132039837,0.01,96750.0,96723.0,0.31016252]
[1763132040140,0.41877,96768.0,96754.0,0.20670889]
[1763132040141,0.09577,96767.0,96754.0,0.20670889]
[1763132040344,0.09577,96767.0,96759.0,0.2066974]
[1763132040577,0.01,96750.0,96740.0,0.01033698]
[1763132040780,0.002,96760.0,96730.0,0.01033805]
[1763132040971,0.002,96760.0,96759.0,0.20669911]
[1763132041176,0.002,96760.0,96758.0,0.20669977]
[1763132041177,0.012,96760.0,96758.0,0.20669977]
[1763132041405,0.0482,96769.0,96768.0,0.20667989]
[1763132041606,0.09549,96782.0,96768.0,0.20667989]
[1763132041607,0.04745,96778.0,96777.0,0.20666067]
[1763132041818,0.25480642,96803.0,96777.0,0.20666067]
[1763132041819,0.04745,96788.0,96777.0,0.20666067]
[1763132041988,0.04745,96788.0,96786.0,0.20664145]
[1763132042194,0.01,96800.0,96799.0,0.2066137]
[1763132042430,0.01,96800.0,96771.0,0.20667348]
[1763132042652,0.0482,96803.0,96798.0,0.20661583]
[1763132042653,0.09549,96799.0,96798.0,0.20661583]
[1763132042873,0.09549,96799.0,96797.0,0.20661723]